[Event "Rapidturnier Deutsche Meister"]
[Site "Leipzig"]
[Date "2020.10.03"]
[Round "1.1"]
[White "Paehtz, Thomas"]
[Black "Boensch, Uwe"]
[Result "1/2-1/2"]
[ECO "B81"]
[WhiteElo "2297"]
[BlackElo "2508"]
[Annotator "broadcasts"]
[PlyCount "97"]
[EventDate "2020.10.03"]
[EventType "swiss"]
[EventCountry "GER"]
[TimeControl "900+5"]

1. e4 {[%emt 0:00:00]} c5 {[%emt 0:00:00]} 2. Nf3 {[%emt 0:00:02]} d6 {[%emt 0:00:01]} 3. d4 {[%emt 0:00:04]} cxd4 {[%emt 0:00:03]} 4. Nxd4 {[%emt 0:00:02]} Nf6 {[%emt 0:00:03]} 5. Nc3 {[%emt 0:00:09]} e6 {[%emt 0:00:04]} 6. g4 {[%emt 0:00:15]} h6 {[%emt 0:00:02]} 7. Rg1 {[%emt 0:00:19]} Nc6 {[%emt 0:00:04]} 8. h4 {[%emt 0:00:28]} d5 {[%emt 0:00:03]} 9. exd5 {[%emt 0:00:24]} Nxd5 {[%emt 0:00:02]} 10. Nxd5 {[%emt 0:00:11]} Qxd5 {[%emt 0:00:05]} 11. Bg2 {[%emt 0:00:27]} Qe5+ {[%emt 0:00:31]} 12. Be3 {[%emt 0:00:02]} Bd7 {[%emt 0:00:02]} 13. Nxc6 {[%emt 0:00:48]} Bxc6 {[%emt 0:00:05]} 14. Bxc6+ {[%emt 0:00:07]} bxc6 {[%emt 0:00:02]} 15. Qd4 {[%emt 0:00:55]} Qxd4 {[%emt 0:01:04]} 16. Bxd4 {[%emt 0:00:03]} c5 {[%emt 0:01:11]} 17. Bc3 {[%emt 0:00:08]} O-O-O {[%emt 0:00:37]} 18. Ke2 {[%emt 0:01:09]} Rd5 {[%emt 0:00:54]} 19. f4 {[%emt 0:00:00]} Rg8 {[%emt 0:01:08]} 20. Rad1 {[%emt 0:01:04]} Kd7 {[%emt 0:01:21]} 21. h5 {[%emt 0:01:49]} Bd6 {[%emt 0:01:09]} 22. Kf3 {[%emt 0:00:06]} g6 {[%emt 0:02:41]} 23. hxg6 {[%emt 0:00:41]} fxg6 {[%emt 0:00:02]} 24. Rxd5 {[%emt 0:00:23]} exd5 {[%emt 0:00:02]} 25. Rh1 {[%emt 0:00:00]} Rf8 {[%emt 0:00:14]} 26. Bd2 {[%emt 0:00:04]} Bxf4 {[%emt 0:00:46]} 27. Bxf4 {[%emt 0:00:02]} g5 {[%emt 0:00:01]} 28. Rxh6 {[%emt 0:00:03]} Rxf4+ {[%emt 0:00:02]} 29. Kg3 {[%emt 0:00:08]} Re4 {[%emt 0:00:31]} 30. Rg6 {[%emt 0:00:59]} Re2 {[%emt 0:00:07]} 31. Rxg5 {[%emt 0:00:02]} Rxc2 {[%emt 0:00:37]} 32. Rxd5+ {[%emt 0:00:11]} Kc6 {[%emt 0:00:02]} 33. Rd3 {[%emt 0:00:21]} Rxb2 {[%emt 0:00:07]} 34. Ra3 {[%emt 0:00:02]} Rb7 {[%emt 0:00:32]} 35. g5 {[%emt 0:00:07]} Kd5 {[%emt 0:00:13]} 36. Kf4 {[%emt 0:00:33]} Rf7+ {[%emt 0:00:54]} 37. Ke3 {[%emt 0:00:29]} Rg7 {[%emt 0:00:15]} 38. g6 {[%emt 0:00:42]} Rxg6 {[%emt 0:00:14]} 39. Rxa7 {[%emt 0:00:02]} Kc4 {[%emt 0:00:12]} 40. Kd2 {[%emt 0:00:30]} Rg2+ {[%emt 0:00:12]} 41. Kc1 {[%emt 0:00:03]} Kd4 {[%emt 0:00:13]} 42. Ra3 {[%emt 0:01:06]} c4 {[%emt 0:00:02]} 43. Rh3 {[%emt 0:00:02]} Rxa2 {[%emt 0:00:03]} 44. Rg3 {[%emt 0:00:04]} Rf2 {[%emt 0:00:26]} 45. Rh3 {[%emt 0:00:02]} Rg2 {[%emt 0:00:02]} 46. Rf3 {[%emt 0:00:05]} Kc5 {[%emt 0:00:05]} 47. Rh3 {[%emt 0:00:07]} Kb4 {[%emt 0:00:02]} 48. Rf3 {[%emt 0:00:03]} c3 {[%emt 0:00:26]} 49. Rf8 {[%emt 0:00:03]} 1/2-1/2

[Event "Rapidturnier Deutsche Meister"]
[Site "Leipzig"]
[Date "2020.10.03"]
[Round "1.2"]
[White "Knaak, Rainer"]
[Black "Glienke, Manfred"]
[Result "1-0"]
[ECO "D37"]
[WhiteElo "2476"]
[BlackElo "2231"]
[Annotator "broadcasts"]
[PlyCount "77"]
[EventDate "2020.10.03"]
[EventType "swiss"]
[EventCountry "GER"]
[TimeControl "900+5"]

1. d4 {[%emt 0:00:00]} Nf6 {[%emt 0:00:00]} 2. c4 {[%emt 0:00:01]} e6 {[%emt 0:00:01]} 3. Nc3 {[%emt 0:00:04]} d5 {[%emt 0:00:03]} 4. Nf3 {[%emt 0:00:09]} Be7 {[%emt 0:00:09]} 5. Bf4 {[%emt 0:00:05]} O-O {[%emt 0:00:04]} 6. e3 {[%emt 0:00:03]} c5 {[%emt 0:00:01]} 7. dxc5 {[%emt 0:00:15]} Qa5 {[%emt 0:00:03]} 8. Be2 {[%emt 0:00:12]} dxc4 {[%emt 0:00:03]} 9. Bxc4 {[%emt 0:00:11]} Qxc5 {[%emt 0:00:03]} 10. Qe2 {[%emt 0:00:19]} a6 {[%emt 0:00:06]} 11. a4 {[%emt 0:00:16]} Nc6 {[%emt 0:00:19]} 12. O-O {[%emt 0:00:08]} e5 {[%emt 0:00:33]} 13. Bg3 {[%emt 0:00:18]} Bg4 {[%emt 0:00:04]} 14. h3 {[%emt 0:00:42]} Bh5 {[%emt 0:00:04]} 15. Bd3 {[%emt 0:00:05]} Rfe8 {[%emt 0:03:37]} 16. Rfc1 {[%emt 0:00:35]} Qb4 {[%emt 0:00:31]} 17. Qc2 {[%emt 0:00:33]} Bf8 {[%emt 0:01:30]} 18. Nd2 {[%emt 0:00:50]} Rad8 {[%emt 0:00:56]} 19. Nde4 {[%emt 0:00:29]} Bg6 {[%emt 0:00:53]} 20. Nxf6+ {[%emt 0:00:23]} gxf6 {[%emt 0:00:02]} 21. Bxg6 {[%emt 0:01:17]} hxg6 {[%emt 0:00:02]} 22. Rd1 {[%emt 0:00:01]} Qc4 {[%emt 0:01:42]} 23. a5 {[%emt 0:01:07]} Bb4 {[%emt 0:00:32]} 24. Qa4 {[%emt 0:00:38]} Kg7 {[%emt 0:00:33]} 25. Na2 {[%emt 0:00:37]} Qb5 {[%emt 0:00:35]} 26. Qxb5 {[%emt 0:00:23]} axb5 {[%emt 0:00:02]} 27. Nxb4 {[%emt 0:00:03]} Nxb4 {[%emt 0:00:01]} 28. f3 {[%emt 0:00:09]} Nc2 {[%emt 0:00:40]} 29. Rac1 {[%emt 0:00:41]} Nxe3 {[%emt 0:00:07]} 30. Rxd8 {[%emt 0:00:03]} Rxd8 {[%emt 0:00:01]} 31. Rc7 {[%emt 0:00:07]} Rd1+ {[%emt 0:02:26]} 32. Kf2 {[%emt 0:00:06]} Nf5 {[%emt 0:00:11]} 33. Ke2 {[%emt 0:02:09]} Rb1 {[%emt 0:00:04]} 34. Be1 {[%emt 0:00:01]} Rxb2+ {[%emt 0:00:04]} 35. Bd2 {[%emt 0:00:04]} Nd4+ {[%emt 0:00:26]} 36. Kd3 {[%emt 0:00:06]} b4 {[%emt 0:00:19]} 37. Rxb7 {[%emt 0:00:38]} Nb3 {[%emt 0:00:24]} 38. Bxb4 {[%emt 0:00:02]} Nxa5 {[%emt 0:00:04]} 39. Bf8+ {[%emt 0:00:21]} 1-0

[Event "Rapidturnier Deutsche Meister"]
[Site "Leipzig"]
[Date "2020.10.03"]
[Round "1.3"]
[White "Espig, Lutz"]
[Black "Tischbierek, Raj"]
[Result "0-1"]
[ECO "A41"]
[WhiteElo "2256"]
[BlackElo "2367"]
[Annotator "broadcasts"]
[PlyCount "34"]
[EventDate "2020.10.03"]
[EventType "swiss"]
[EventCountry "GER"]
[TimeControl "900+5"]

1. Nf3 {[%emt 0:00:00]} d6 {[%emt 0:00:12]} 2. d4 {[%emt 0:00:03]} Bg4 {[%emt 0:00:02]} 3. e4 {[%emt 0:00:12]} Nf6 {[%emt 0:00:02]} 4. Nc3 {[%emt 0:00:07]} e6 {[%emt 0:00:02]} 5. Be2 {[%emt 0:00:02]} d5 {[%emt 0:00:02]} 6. exd5 {[%emt 0:00:21]} exd5 {[%emt 0:00:03]} 7. Ne5 {[%emt 0:00:05]} Be6 {[%emt 0:00:50]} 8. Bg5 {[%emt 0:00:11]} Be7 {[%emt 0:00:04]} 9. Qd2 {[%emt 0:00:06]} Nbd7 {[%emt 0:00:52]} 10. O-O-O {[%emt 0:00:05]} c6 {[%emt 0:00:13]} 11. Kb1 {[%emt 0:00:15]} Nxe5 {[%emt 0:02:40]} 12. dxe5 {[%emt 0:00:02]} Nd7 {[%emt 0:00:02]} 13. Bxe7 {[%emt 0:00:24]} Qxe7 {[%emt 0:00:02]} 14. f4 {[%emt 0:00:21]} f6 {[%emt 0:00:48]} 15. exf6 {[%emt 0:00:09]} Qxf6 {[%emt 0:00:14]} 16. Bh5+ {[%emt 0:00:45]} g6 {[%emt 0:00:07]} 17. Bg4 {[%emt 0:00:02]} Bxg4 {[%emt 0:00:08]} 0-1

[Event "Rapidturnier Deutsche Meister"]
[Site "Leipzig"]
[Date "2020.10.03"]
[Round "1.4"]
[White "Hecht, Hans-Joachim"]
[Black "Schoeneberg, Manfred"]
[Result "1/2-1/2"]
[ECO "A55"]
[WhiteElo "2311"]
[BlackElo "2133"]
[Annotator "broadcasts"]
[PlyCount "36"]
[EventDate "2020.10.03"]
[EventType "swiss"]
[EventCountry "GER"]
[TimeControl "900+5"]

1. d4 {[%emt 0:00:00]} Nf6 {[%emt 0:00:10]} 2. c4 {[%emt 0:00:01]} d6 3. Nf3 {[%emt 0:00:03]} Nbd7 {[%emt 0:00:19]} 4. Nc3 {[%emt 0:00:07]} e5 {[%emt 0:00:01]} 5. g3 {[%emt 0:00:05]} Be7 {[%emt 0:00:14]} 6. Bg2 {[%emt 0:00:02]} O-O {[%emt 0:00:12]} 7. O-O {[%emt 0:00:04]} c6 {[%emt 0:00:36]} 8. e4 {[%emt 0:00:28]} Qc7 {[%emt 0:00:50]} 9. Re1 {[%emt 0:00:06]} Re8 {[%emt 0:00:17]} 10. h3 {[%emt 0:00:10]} a6 {[%emt 0:00:47]} 11. d5 {[%emt 0:01:35]} cxd5 {[%emt 0:00:27]} 12. cxd5 {[%emt 0:00:02]} b5 {[%emt 0:00:28]} 13. Bd2 {[%emt 0:01:17]} Nb6 {[%emt 0:01:38]} 14. a4 {[%emt 0:02:28]} Bd7 {[%emt 0:01:10]} 15. Rc1 {[%emt 0:02:23]} Nc4 {[%emt 0:01:29]} 16. axb5 {[%emt 0:01:50]} axb5 {[%emt 0:00:02]} 17. Nxb5 {[%emt 0:00:01]} Bxb5 {[%emt 0:00:20]} 18. b3 {[%emt 0:00:01]} Rec8 {[%emt 0:00:39]} 1/2-1/2

[Event "Rapidturnier Deutsche Meister"]
[Site "Leipzig"]
[Date "2020.10.03"]
[Round "1.5"]
[White "Wagner-Michel, Annett"]
[Black "Heinatz, Gundula"]
[Result "1-0"]
[ECO "B12"]
[WhiteElo "2011"]
[BlackElo "2197"]
[Annotator "broadcasts"]
[PlyCount "87"]
[EventDate "2020.10.03"]
[EventType "swiss"]
[EventCountry "GER"]
[TimeControl "900+5"]

1. e4 {[%emt 0:00:00]} g6 {[%emt 0:00:00]} 2. d4 {[%emt 0:00:03]} Bg7 {[%emt 0:00:00]} 3. c3 {[%emt 0:00:08]} d5 {[%emt 0:00:04]} 4. Nd2 {[%emt 0:00:12]} c6 {[%emt 0:01:16]} 5. h3 {[%emt 0:00:23]} e5 {[%emt 0:01:17]} 6. exd5 {[%emt 0:02:04]} exd4 {[%emt 0:00:12]} 7. cxd4 {[%emt 0:00:39]} cxd5 {[%emt 0:00:19]} 8. Bb5+ {[%emt 0:00:36]} Nc6 {[%emt 0:00:20]} 9. Ngf3 {[%emt 0:00:33]} Qe7+ {[%emt 0:01:20]} 10. Qe2 {[%emt 0:00:22]} Qxe2+ {[%emt 0:00:14]} 11. Kxe2 {[%emt 0:00:03]} a6 {[%emt 0:01:10]} 12. Bxc6+ {[%emt 0:00:06]} bxc6 {[%emt 0:00:02]} 13. Nb3 {[%emt 0:00:17]} a5 {[%emt 0:00:07]} 14. Nc5 {[%emt 0:01:06]} Ne7 {[%emt 0:00:32]} 15. Bf4 {[%emt 0:01:28]} O-O {[%emt 0:01:56]} 16. Rhe1 {[%emt 0:00:42]} Nf5 {[%emt 0:01:19]} 17. Kd3 {[%emt 0:00:22]} h5 {[%emt 0:01:45]} 18. Rac1 {[%emt 0:00:29]} a4 {[%emt 0:00:32]} 19. Rc3 {[%emt 0:00:36]} Bf6 {[%emt 0:00:06]} 20. Ra3 {[%emt 0:00:25]} Be7 {[%emt 0:00:58]} 21. Rxa4 {[%emt 0:00:38]} Rxa4 {[%emt 0:00:02]} 22. Nxa4 {[%emt 0:00:02]} Ba6+ {[%emt 0:00:01]} 23. Kc3 {[%emt 0:00:37]} Rc8 {[%emt 0:00:27]} 24. g4 {[%emt 0:00:08]} hxg4 {[%emt 0:00:16]} 25. hxg4 {[%emt 0:00:02]} Nh4 {[%emt 0:00:38]} 26. Rxe7 {[%emt 0:01:46]} Nxf3 {[%emt 0:00:01]} 27. Nc5 {[%emt 0:00:09]} Bf1 {[%emt 0:00:02]} 28. Re3 {[%emt 0:00:10]} Nh4 {[%emt 0:00:08]} 29. Re1 {[%emt 0:00:12]} Ng2 {[%emt 0:00:06]} 30. Rxf1 {[%emt 0:00:09]} Nxf4 {[%emt 0:00:01]} 31. Re1 {[%emt 0:00:07]} Kg7 {[%emt 0:00:16]} 32. Re7 {[%emt 0:00:03]} Rh8 {[%emt 0:00:05]} 33. Rc7 {[%emt 0:00:08]} Rh3+ {[%emt 0:00:07]} 34. Kb4 {[%emt 0:00:06]} Ne2 {[%emt 0:00:07]} 35. Nb3 {[%emt 0:00:06]} Rf3 {[%emt 0:00:09]} 36. Rxc6 {[%emt 0:00:02]} Rxf2 {[%emt 0:00:05]} 37. a4 {[%emt 0:00:01]} Rf4 {[%emt 0:00:03]} 38. a5 {[%emt 0:00:08]} Nxd4 {[%emt 0:00:07]} 39. Nxd4 {[%emt 0:00:05]} Rxd4+ {[%emt 0:00:01]} 40. Kb5 {[%emt 0:00:04]} Rxg4 {[%emt 0:00:01]} 41. a6 {[%emt 0:00:01]} Rg1 {[%emt 0:00:06]} 42. a7 {[%emt 0:00:03]} Rb1 {[%emt 0:00:02]} 43. b4 {[%emt 0:00:01]} Ra1 {[%emt 0:00:03]} 44. Ra6 {[%emt 0:00:01]} 1-0

[Event "Rapidturnier Deutsche Meister"]
[Site "Leipzig"]
[Date "2020.10.03"]
[Round "1.6"]
[White "Burchardt, Brigitte"]
[Black "Mai, Iris"]
[Result "1/2-1/2"]
[ECO "B40"]
[WhiteElo "2067"]
[BlackElo "2021"]
[Annotator "broadcasts"]
[PlyCount "38"]
[EventDate "2020.10.03"]
[EventType "swiss"]
[EventCountry "GER"]
[TimeControl "900+5"]

1. e4 {[%emt 0:00:00]} c5 {[%emt 0:00:03]} 2. b3 {[%emt 0:00:00]} b6 {[%emt 0:00:06]} 3. Bb2 {[%emt 0:00:02]} Bb7 {[%emt 0:00:01]} 4. Nc3 {[%emt 0:00:01]} e6 {[%emt 0:00:08]} 5. Nf3 {[%emt 0:00:04]} d6 {[%emt 0:00:37]} 6. Bb5+ {[%emt 0:00:53]} Nd7 {[%emt 0:00:02]} 7. O-O {[%emt 0:00:36]} a6 {[%emt 0:00:02]} 8. Bxd7+ {[%emt 0:00:03]} Qxd7 {[%emt 0:00:01]} 9. d4 {[%emt 0:00:32]} Nf6 {[%emt 0:00:31]} 10. dxc5 {[%emt 0:02:10]} dxc5 {[%emt 0:01:19]} 11. Qe2 {[%emt 0:00:46]} Be7 {[%emt 0:00:19]} 12. e5 {[%emt 0:00:35]} Nd5 {[%emt 0:00:05]} 13. Nxd5 {[%emt 0:00:43]} Qxd5 {[%emt 0:00:07]} 14. Rad1 {[%emt 0:00:31]} Qc6 {[%emt 0:00:02]} 15. c4 {[%emt 0:00:03]} O-O {[%emt 0:00:04]} 16. Rd3 {[%emt 0:00:01]} Rad8 {[%emt 0:00:28]} 17. Rfd1 {[%emt 0:00:29]} Rxd3 {[%emt 0:00:05]} 18. Rxd3 {[%emt 0:00:01]} Rd8 {[%emt 0:00:13]} 19. Rxd8+ {[%emt 0:00:03]} Bxd8 {[%emt 0:00:02]} 1/2-1/2

[Event "Rapidturnier Deutsche Meister"]
[Site "Leipzig"]
[Date "2020.10.03"]
[Round "1.7"]
[White "Seidemann, Ulricke"]
[Black "Goehler, Antje"]
[Result "0-1"]
[ECO "A30"]
[WhiteElo "2043"]
[BlackElo "2102"]
[Annotator "broadcasts"]
[PlyCount "62"]
[EventDate "2020.10.03"]
[EventType "swiss"]
[EventCountry "GER"]
[TimeControl "900+5"]

1. c4 {[%emt 0:00:00]} c5 {[%emt 0:00:00]} 2. g3 {[%emt 0:00:02]} b6 {[%emt 0:00:00]} 3. Bg2 {[%emt 0:00:01]} Nc6 {[%emt 0:00:01]} 4. e3 {[%emt 0:00:15]} Bb7 {[%emt 0:00:02]} 5. d4 {[%emt 0:00:08]} cxd4 {[%emt 0:00:24]} 6. exd4 {[%emt 0:00:02]} d6 {[%emt 0:00:06]} 7. Nc3 {[%emt 0:00:13]} e6 {[%emt 0:00:05]} 8. Nge2 {[%emt 0:00:18]} Nf6 {[%emt 0:00:02]} 9. O-O {[%emt 0:00:03]} Be7 {[%emt 0:00:03]} 10. h3 {[%emt 0:00:44]} a6 {[%emt 0:00:05]} 11. Be3 {[%emt 0:00:04]} Qc7 {[%emt 0:00:05]} 12. Rc1 {[%emt 0:00:07]} Rc8 {[%emt 0:00:17]} 13. d5 {[%emt 0:00:13]} Ne5 {[%emt 0:00:26]} 14. b3 {[%emt 0:00:11]} Nfd7 {[%emt 0:00:54]} 15. f4 {[%emt 0:00:18]} Ng6 {[%emt 0:00:08]} 16. dxe6 {[%emt 0:00:42]} fxe6 {[%emt 0:00:04]} 17. Nd4 {[%emt 0:00:20]} Ngf8 {[%emt 0:00:53]} 18. Qh5+ {[%emt 0:00:20]} g6 {[%emt 0:00:08]} 19. Qe2 {[%emt 0:00:01]} Bxg2 {[%emt 0:00:05]} 20. Kxg2 {[%emt 0:00:02]} Bf6 {[%emt 0:00:29]} 21. Nxe6 {[%emt 0:01:18]} Nxe6 {[%emt 0:00:08]} 22. Nd5 {[%emt 0:00:02]} Qc6 {[%emt 0:00:27]} 23. Bd4 {[%emt 0:01:02]} Kf7 {[%emt 0:00:47]} 24. f5 {[%emt 0:00:25]} Nxd4 {[%emt 0:00:11]} 25. fxg6+ {[%emt 0:00:07]} Kg7 {[%emt 0:00:41]} 26. Qg4 {[%emt 0:00:33]} h5 {[%emt 0:00:06]} 27. Qd1 {[%emt 0:01:07]} Ne6 {[%emt 0:00:56]} 28. Kh2 {[%emt 0:00:47]} Rcf8 {[%emt 0:00:08]} 29. Qd3 {[%emt 0:02:44]} Ne5 {[%emt 0:00:57]} 30. Qe2 {[%emt 0:02:05]} Ng5 {[%emt 0:01:27]} 31. Rc3 {[%emt 0:01:09]} Ng4+ {[%emt 0:01:07]} 0-1

[Event "Rapidturnier Deutsche Meister"]
[Site "Leipzig"]
[Date "2020.10.03"]
[Round "1.8"]
[White "Kunze, Kerstin"]
[Black "Just, Gabriele"]
[Result "1-0"]
[ECO "C01"]
[WhiteElo "2037"]
[BlackElo "1837"]
[Annotator "broadcasts"]
[PlyCount "60"]
[EventDate "2020.10.03"]
[EventType "swiss"]
[EventCountry "GER"]
[TimeControl "900+5"]

1. e4 {[%emt 0:00:02]} e6 {[%emt 0:00:00]} 2. d4 {[%emt 0:00:19]} d5 {[%emt 0:00:00]} 3. Nc3 {[%emt 0:00:39]} Bb4 {[%emt 0:00:04]} 4. exd5 {[%emt 0:01:30]} exd5 {[%emt 0:00:03]} 5. Bd3 {[%emt 0:00:05]} Nc6 {[%emt 0:00:38]} 6. Nge2 {[%emt 0:02:00]} Nge7 {[%emt 0:00:14]} 7. O-O {[%emt 0:01:03]} Bg4 {[%emt 0:00:56]} 8. Qd2 {[%emt 0:03:06]} f6 {[%emt 0:01:49]} 9. h3 {[%emt 0:01:57]} Bh5 {[%emt 0:00:26]} 10. Nf4 {[%emt 0:00:52]} Bg6 {[%emt 0:00:12]} 11. Ne6 {[%emt 0:00:17]} Qd7 {[%emt 0:00:45]} 12. Re1 {[%emt 0:00:42]} Kf7 {[%emt 0:00:31]} 13. a3 {[%emt 0:00:26]} Bxc3 {[%emt 0:02:20]} 14. bxc3 {[%emt 0:00:27]} Rae8 {[%emt 0:00:19]} 15. Bb2 {[%emt 0:00:50]} Bxd3 {[%emt 0:00:58]} 16. Qxd3 {[%emt 0:00:12]} Na5 {[%emt 0:01:37]} 17. Rad1 {[%emt 0:01:25]} Nc4 {[%emt 0:00:06]} 18. Bc1 {[%emt 0:00:03]} g6 {[%emt 0:00:38]} 19. Nc5 {[%emt 0:00:10]} Qc8 {[%emt 0:00:27]} 20. Qf3 {[%emt 0:00:08]} b6 {[%emt 0:00:10]} 21. Nd3 {[%emt 0:00:05]} Kg7 {[%emt 0:00:09]} 22. Nf4 {[%emt 0:00:04]} Qf5 {[%emt 0:00:14]} 23. g4 {[%emt 0:00:11]} Qxc2 {[%emt 0:00:19]} 24. Ne6+ {[%emt 0:00:02]} Kf7 {[%emt 0:00:08]} 25. Nxc7 {[%emt 0:00:02]} Rd8 {[%emt 0:01:23]} 26. Bg5 {[%emt 0:00:02]} Rd6 {[%emt 0:00:04]} 27. Rxe7+ {[%emt 0:00:07]} Kxe7 {[%emt 0:00:08]} 28. Nxd5+ {[%emt 0:00:05]} Kd7 {[%emt 0:00:13]} 29. Nxf6+ {[%emt 0:00:11]} Kc8 {[%emt 0:00:06]} 30. Qa8+ {[%emt 0:00:07]} Kc7 {[%emt 0:00:02]} 1-0

[Event "Rapidturnier Deutsche Meister"]
[Site "Leipzig"]
[Date "2020.10.03"]
[Round "2.1"]
[White "Baumbach, Friedrich"]
[Black "Knaak, Rainer"]
[Result "0-1"]
[ECO "D31"]
[WhiteElo "2127"]
[BlackElo "2476"]
[Annotator "broadcasts"]
[PlyCount "74"]
[EventDate "2020.10.03"]
[EventType "swiss"]
[EventCountry "GER"]
[TimeControl "900+5"]

1. d4 {[%emt 0:00:00]} d5 {[%emt 0:00:00]} 2. c4 {[%emt 0:00:00]} e6 {[%emt 0:00:00]} 3. Nc3 {[%emt 0:00:01]} a6 {[%emt 0:00:03]} 4. e4 {[%emt 0:00:17]} dxe4 {[%emt 0:00:32]} 5. Nxe4 {[%emt 0:00:03]} Bb4+ {[%emt 0:00:05]} 6. Nc3 {[%emt 0:00:20]} c5 {[%emt 0:00:36]} 7. d5 {[%emt 0:00:41]} Nf6 {[%emt 0:00:51]} 8. Bg5 {[%emt 0:02:21]} exd5 {[%emt 0:02:00]} 9. cxd5 {[%emt 0:02:06]} Bxc3+ {[%emt 0:02:16]} 10. bxc3 {[%emt 0:00:02]} Qxd5 {[%emt 0:00:06]} 11. Bxf6 {[%emt 0:01:16]} Qe6+ {[%emt 0:00:05]} 12. Qe2 {[%emt 0:00:38]} gxf6 {[%emt 0:00:02]} 13. g3 {[%emt 0:00:48]} Nc6 {[%emt 0:00:20]} 14. Nh3 {[%emt 0:00:23]} O-O {[%emt 0:01:02]} 15. Nf4 {[%emt 0:00:24]} Qe5 {[%emt 0:00:57]} 16. Qxe5 {[%emt 0:00:27]} fxe5 {[%emt 0:00:20]} 17. Nd3 {[%emt 0:01:09]} b6 {[%emt 0:01:12]} 18. Bg2 {[%emt 0:00:07]} Bd7 {[%emt 0:00:11]} 19. Rb1 {[%emt 0:00:08]} Rab8 {[%emt 0:00:09]} 20. O-O {[%emt 0:00:06]} f6 {[%emt 0:00:14]} 21. Rfd1 {[%emt 0:00:08]} Rfd8 {[%emt 0:01:00]} 22. Rb2 {[%emt 0:00:33]} Kf8 {[%emt 0:00:19]} 23. Rdb1 {[%emt 0:00:18]} Bf5 {[%emt 0:00:53]} 24. Bxc6 {[%emt 0:02:30]} Bxd3 {[%emt 0:00:02]} 25. Rc1 {[%emt 0:00:13]} Bc4 {[%emt 0:00:16]} 26. f4 {[%emt 0:00:18]} Rd6 {[%emt 0:00:13]} 27. Be4 {[%emt 0:00:07]} h6 {[%emt 0:00:14]} 28. Kf2 {[%emt 0:00:06]} exf4 {[%emt 0:00:06]} 29. gxf4 {[%emt 0:00:02]} Re8 {[%emt 0:00:01]} 30. Kf3 {[%emt 0:00:17]} Rde6 {[%emt 0:00:34]} 31. Bg6 {[%emt 0:00:23]} Rd8 {[%emt 0:00:11]} 32. a4 {[%emt 0:00:13]} b5 {[%emt 0:00:12]} 33. axb5 {[%emt 0:00:02]} axb5 {[%emt 0:00:01]} 34. Kg4 {[%emt 0:00:24]} Re3 {[%emt 0:00:07]} 35. Kh5 {[%emt 0:00:29]} Kg7 {[%emt 0:00:34]} 36. h4 {[%emt 0:00:24]} Be2+ {[%emt 0:00:25]} 37. Rxe2 {[%emt 0:00:07]} Rxe2 {[%emt 0:00:01]} 0-1

[Event "Rapidturnier Deutsche Meister"]
[Site "Leipzig"]
[Date "2020.10.03"]
[Round "2.2"]
[White "Goehler, Antje"]
[Black "Kunze, Kerstin"]
[Result "1/2-1/2"]
[ECO "D45"]
[WhiteElo "2102"]
[BlackElo "2037"]
[Annotator "broadcasts"]
[PlyCount "69"]
[EventDate "2020.10.03"]
[EventType "swiss"]
[EventCountry "GER"]
[TimeControl "900+5"]

1. d4 {[%emt 0:00:00]} Nf6 {[%emt 0:00:01]} 2. Nf3 {[%emt 0:00:00]} e6 {[%emt 0:00:12]} 3. c4 {[%emt 0:00:03]} d5 {[%emt 0:01:05]} 4. Nc3 {[%emt 0:00:05]} c6 {[%emt 0:00:21]} 5. e3 {[%emt 0:00:06]} Bd6 {[%emt 0:00:55]} 6. Qc2 {[%emt 0:00:24]} Nbd7 {[%emt 0:00:40]} 7. b3 {[%emt 0:00:16]} Qe7 {[%emt 0:01:23]} 8. Bb2 {[%emt 0:00:09]} a6 {[%emt 0:01:36]} 9. Be2 {[%emt 0:01:12]} O-O {[%emt 0:01:10]} 10. O-O {[%emt 0:00:04]} b5 {[%emt 0:00:47]} 11. e4 {[%emt 0:01:46]} b4 {[%emt 0:00:49]} 12. e5 {[%emt 0:00:03]} bxc3 {[%emt 0:00:01]} 13. exd6 {[%emt 0:01:01]} Qxd6 {[%emt 0:00:01]} 14. Qxc3 {[%emt 0:00:22]} Ne4 {[%emt 0:00:06]} 15. Qe3 {[%emt 0:00:19]} a5 {[%emt 0:01:06]} 16. a4 {[%emt 0:00:18]} Re8 {[%emt 0:00:25]} 17. Ba3 {[%emt 0:00:27]} Qc7 {[%emt 0:00:13]} 18. Rfc1 {[%emt 0:00:17]} Qb6 {[%emt 0:00:06]} 19. Rab1 {[%emt 0:00:57]} Ba6 {[%emt 0:00:10]} 20. b4 {[%emt 0:00:20]} axb4 {[%emt 0:00:14]} 21. Rxb4 {[%emt 0:00:05]} Qa5 {[%emt 0:00:04]} 22. Rcb1 {[%emt 0:01:03]} Rab8 {[%emt 0:02:03]} 23. Qb3 {[%emt 0:02:22]} Rxb4 {[%emt 0:00:13]} 24. Qxb4 {[%emt 0:00:29]} Qxb4 {[%emt 0:00:14]} 25. Rxb4 {[%emt 0:00:08]} Nc3 {[%emt 0:00:03]} 26. Bd3 {[%emt 0:00:26]} Rb8 {[%emt 0:00:37]} 27. Rxb8+ {[%emt 0:01:19]} Nxb8 {[%emt 0:00:25]} 28. Ne5 Nxa4 {[%emt 0:00:07]} 29. Bd6 {[%emt 0:00:09]} f6 30. Bxb8 {[%emt 0:00:18]} fxe5 31. Bxe5 {[%emt 0:00:15]} dxc4 {[%emt 0:00:15]} 32. Bc2 Nb6 {[%emt 0:00:21]} 33. Kf1 {[%emt 0:00:00]} c3+ {[%emt 0:00:49]} 34. Ke1 {[%emt 0:00:07]} Nd5 {[%emt 0:00:35]} 35. Bd6 1/2-1/2

[Event "Rapidturnier Deutsche Meister"]
[Site "Leipzig"]
[Date "2020.10.03"]
[Round "2.3"]
[White "Tischbierek, Raj"]
[Black "Hecht, Hans-Joachim"]
[Result "1/2-1/2"]
[ECO "C10"]
[WhiteElo "2367"]
[BlackElo "2311"]
[Annotator "broadcasts"]
[PlyCount "72"]
[EventDate "2020.10.03"]
[EventType "swiss"]
[EventCountry "GER"]
[TimeControl "900+5"]

1. e4 {[%emt 0:00:00]} e6 {[%emt 0:00:00]} 2. d4 {[%emt 0:00:00]} d5 {[%emt 0:00:00]} 3. Nc3 {[%emt 0:00:02]} Nc6 {[%emt 0:00:00]} 4. e5 {[%emt 0:00:02]} Bd7 {[%emt 0:00:01]} 5. Nce2 {[%emt 0:01:08]} Qe7 {[%emt 0:00:11]} 6. f4 {[%emt 0:00:06]} Nh6 {[%emt 0:00:08]} 7. Nf3 {[%emt 0:00:11]} Nf5 {[%emt 0:00:02]} 8. c3 {[%emt 0:00:28]} h5 {[%emt 0:00:26]} 9. Ng3 {[%emt 0:00:26]} h4 {[%emt 0:00:38]} 10. Nxf5 {[%emt 0:00:17]} exf5 {[%emt 0:00:03]} 11. Bd3 {[%emt 0:00:24]} O-O-O {[%emt 0:00:10]} 12. O-O {[%emt 0:00:23]} Kb8 {[%emt 0:00:54]} 13. b4 {[%emt 0:00:04]} Be6 {[%emt 0:01:46]} 14. a4 {[%emt 0:00:22]} Qd7 {[%emt 0:00:01]} 15. a5 {[%emt 0:00:30]} Ne7 {[%emt 0:01:44]} 16. Nd2 {[%emt 0:02:13]} Nc8 {[%emt 0:00:53]} 17. Nb3 {[%emt 0:00:52]} a6 {[%emt 0:00:15]} 18. Nc5 {[%emt 0:00:43]} Bxc5 {[%emt 0:00:02]} 19. bxc5 {[%emt 0:00:02]} Na7 {[%emt 0:00:15]} 20. Rb1 {[%emt 0:01:13]} Nb5 {[%emt 0:01:15]} 21. Bxb5 {[%emt 0:00:15]} axb5 {[%emt 0:00:01]} 22. Ra1 {[%emt 0:01:07]} Qc6 {[%emt 0:00:12]} 23. h3 {[%emt 0:00:10]} Bc8 {[%emt 0:00:22]} 24. Rf2 {[%emt 0:00:07]} Rh6 {[%emt 0:00:10]} 25. Bd2 {[%emt 0:00:08]} Rdh8 {[%emt 0:02:05]} 26. Be3 {[%emt 0:00:31]} Qa6 {[%emt 0:00:59]} 27. Rb2 {[%emt 0:00:31]} c6 {[%emt 0:00:02]} 28. Bf2 {[%emt 0:00:46]} Be6 {[%emt 0:00:06]} 29. Qe1 {[%emt 0:00:44]} Kc8 {[%emt 0:00:05]} 30. Rd2 {[%emt 0:00:33]} Kc7 {[%emt 0:00:17]} 31. Kh2 {[%emt 0:00:19]} Kc8 {[%emt 0:00:01]} 32. Qb1 {[%emt 0:00:11]} Kc7 {[%emt 0:00:16]} 33. Qb4 {[%emt 0:00:01]} Kc8 {[%emt 0:00:01]} 34. Rd3 {[%emt 0:00:15]} Kc7 {[%emt 0:00:03]} 35. Rd2 {[%emt 0:00:01]} Kc8 {[%emt 0:00:01]} 36. Rd3 {[%emt 0:00:01]} Kc7 1/2-1/2